[Event "TUR-ch Veterans 2019"]
[Site "Belek"]
[Date "2019.01.26"]
[Round "7.8"]
[White "Taskiran, Erol"]
[Black "Sezgun, Yakup"]
[Result "0-1"]
[ECO "D85"]
[WhiteElo "1758"]
[BlackElo "1757"]
[Annotator "NA"]
[PlyCount "91"]
[EventDate "2019.01.20"]
[EventType "swiss"]
[EventCountry "TUR"]
[SourceTitle "playchess.com"]
[Source "ChessBase"]
[SourceQuality "1"]
[TimeControl "5400+30"]

1. d4 {[%emt 0:00:30]} Nf6 {[%emt 0:00:30]} 2. c4 {[%emt 0:00:30]} g6 {[%emt 0:00:00]} 3. Nf3 {[%emt 0:01:30]} Bg7 {[%emt 0:00:00]} 4. Nc3 {[%emt 0:00:30]} d5 {[%emt 0:00:30]} 5. cxd5 {[%emt 0:06:30]} Nxd5 {[%emt 0:00:00]} 6. e4 {[%emt 0:03:30]} Nxc3 {[%emt 0:00:00]} 7. bxc3 {[%emt 0:00:30]} O-O {[%emt 0:00:30]} 8. Bc4 {[%emt 0:00:30]} c5 {[%emt 0:00:00]} 9. Be3 {[%emt 0:05:30]} Nc6 {[%emt 0:00:00]} 10. O-O {[%emt 0:02:30]} cxd4 {[%emt 0:00:30]} 11. cxd4 {[%emt 0:00:30]} Bg4 {[%emt 0:00:30]} 12. e5 {[%emt 0:06:30]} b6 {[%emt 0:11:30]} 13. h3 {[%emt 0:00:30]} Bxf3 {[%emt 0:00:30]} 14. gxf3 {[%emt 0:02:30]} e6 {[%emt 0:05:30]} 15. Rc1 {[%emt 0:01:30]} Rc8 {[%emt 0:02:30]} 16. f4 {[%emt 0:00:30]} Ne7 {[%emt 0:08:30]} 17. Bd3 {[%emt 0:04:30]} Nd5 {[%emt 0:00:30]} 18. Be4 {[%emt 0:02:30]} Qd7 {[%emt 0:03:30]} 19. Qb3 {[%emt 0:07:30]} Rfd8 {[%emt 0:04:30]} 20. Bd3 {[%emt 0:16:30]} Bh6 {[%emt 0:01:30]} 21. Ba6 {[%emt 0:04:30]} Rxc1 {[%emt 0:03:30]} 22. Rxc1 {[%emt 0:00:30]} Bxf4 {[%emt 0:01:30]} 23. Bxf4 {[%emt 0:02:30]} Nxf4 {[%emt 0:00:30]} 24. Rd1 {[%emt 0:01:30]} Qe7 {[%emt 0:04:30]} 25. Qg3 {[%emt 0:02:30]} Nd5 {[%emt 0:01:30]} 26. a3 {[%emt 0:02:30]} Nc7 {[%emt 0:04:30]} 27. Be2 {[%emt 0:01:30]} b5 {[%emt 0:02:30]} 28. h4 {[%emt 0:02:30]} Kh8 {[%emt 0:00:30]} 29. Kh2 {[%emt 0:00:30]} a5 {[%emt 0:09:30]} 30. h5 {[%emt 0:01:40]} b4 {[%emt 0:00:30]} 31. axb4 {[%emt 0:01:05]} axb4 {[%emt 0:00:30]} 32. h6 {[%emt 0:02:39]} Nd5 {[%emt 0:09:30]} 33. Ra1 {[%emt 0:01:05]} Qf8 {[%emt 0:02:30]} 34. Qh4 {[%emt 0:02:10]} Ne7 {[%emt 0:04:30]} 35. Bd3 {[%emt 0:03:09]} Ng8 {[%emt 0:00:45]} 36. Rb1 {[%emt 0:05:28]} Rb8 {[%emt 0:02:22]} 37. Kg2 {[%emt 0:02:44]} Qxh6 {[%emt 0:02:22]} 38. Qg3 {[%emt 0:01:04]} Ne7 {[%emt 0:01:27]} 39. Rh1 {[%emt 0:00:40]} Qg7 {[%emt 0:02:10]} 40. Qf4 {[%emt 0:03:57]} Nd5 {[%emt 0:04:41]} 41. Qf3 {[%emt 0:00:20]} Kg8 {[%emt 0:01:25]} 42. Ra1 {[%emt 0:00:41]} b3 {[%emt 0:01:15]} 43. Rb1 {[%emt 0:00:47]} b2 {[%emt 0:03:55]} 44. Bc4 {[%emt 0:00:16]} Qh6 {[%emt 0:01:51]} 45. Qxd5 {[%emt 0:00:38]} Qg5+ {[%emt 0:00:09]} 46. Kh2 {[%emt 0:01:07]} 0-1

[Event "TUR-ch Veterans 2019"]
[Site "Belek"]
[Date "2019.01.26"]
[Round "7.9"]
[White "Bozkir, Dursun Murat"]
[Black "Paksoy, Eray"]
[Result "1-0"]
[ECO "C14"]
[WhiteElo "1684"]
[BlackElo "1460"]
[Annotator "NA"]
[PlyCount "77"]
[EventDate "2019.01.20"]
[EventType "swiss"]
[EventCountry "TUR"]
[SourceTitle "playchess.com"]
[Source "ChessBase"]
[SourceQuality "1"]
[TimeControl "5400+30"]

1. e4 {[%emt 0:00:30]} e6 {[%emt 0:01:30]} 2. d4 {[%emt 0:00:00]} d5 {[%emt 0:00:00]} 3. Nc3 {[%emt 0:00:00]} Nf6 {[%emt 0:01:00]} 4. Bg5 {[%emt 0:00:30]} Be7 {[%emt 0:00:30]} 5. e5 {[%emt 0:00:00]} Nfd7 {[%emt 0:00:00]} 6. Bxe7 {[%emt 0:00:00]} Qxe7 {[%emt 0:00:00]} 7. f4 {[%emt 0:00:30]} a6 {[%emt 0:00:00]} 8. Nf3 {[%emt 0:00:00]} c5 {[%emt 0:00:00]} 9. Qd2 {[%emt 0:09:00]} Nc6 {[%emt 0:01:30]} 10. Ne2 {[%emt 0:00:30]} b5 {[%emt 0:01:30]} 11. c3 {[%emt 0:00:30]} Nb6 {[%emt 0:00:30]} 12. Ng3 {[%emt 0:02:30]} c4 {[%emt 0:02:30]} 13. Be2 {[%emt 0:02:30]} h5 {[%emt 0:03:30]} 14. h4 {[%emt 0:02:30]} Bd7 {[%emt 0:00:30]} 15. Ng5 {[%emt 0:08:30]} g6 {[%emt 0:00:30]} 16. Bf3 {[%emt 0:01:30]} O-O-O {[%emt 0:02:30]} 17. O-O {[%emt 0:00:30]} Kc7 {[%emt 0:02:30]} 18. b3 {[%emt 0:12:30]} Ra8 {[%emt 0:01:30]} 19. Rfb1 {[%emt 0:06:30]} a5 {[%emt 0:06:30]} 20. Be2 {[%emt 0:07:30]} Rhb8 {[%emt 0:05:30]} 21. bxc4 {[%emt 0:00:30]} Nxc4 {[%emt 0:02:30]} 22. Bxc4 {[%emt 0:00:30]} bxc4 {[%emt 0:18:30]} 23. a4 {[%emt 0:03:30]} Nd8 {[%emt 0:02:30]} 24. Ne2 {[%emt 0:08:30]} Rxb1+ {[%emt 0:03:30]} 25. Rxb1 {[%emt 0:00:30]} Bxa4 {[%emt 0:00:30]} 26. Nc1 {[%emt 0:00:00]} Ra7 {[%emt 0:03:30]} 27. Qa2 {[%emt 0:02:00]} Bd1 {[%emt 0:03:30]} 28. Rb5 {[%emt 0:03:30]} a4 {[%emt 0:03:30]} 29. Kf1 {[%emt 0:04:30]} Rb7 {[%emt 0:02:30]} 30. Rc5+ {[%emt 0:01:30]} Nc6 {[%emt 0:06:30]} 31. Ke1 {[%emt 0:00:30]} Bb3 {[%emt 0:00:30]} 32. Nxb3 {[%emt 0:00:00]} axb3 {[%emt 0:04:30]} 33. Qa5+ {[%emt 0:00:00]} Rb6 {[%emt 0:02:30]} 34. Qa7+ {[%emt 0:01:30]} Rb7 {[%emt 0:00:39]} 35. Qa5+ {[%emt 0:00:00]} Kd7 {[%emt 0:00:37]} 36. Qa6 {[%emt 0:00:00]} Nd8 {[%emt 0:03:07]} 37. Qa4+ {[%emt 0:00:00]} Nc6 {[%emt 0:01:23]} 38. Qxc6+ {[%emt 0:00:00]} Kd8 {[%emt 0:00:30]} 39. Qc8# {[%emt 0:00:30]} 1-0

[Event "TUR-ch Veterans 2019"]
[Site "Belek"]
[Date "2019.01.26"]
[Round "7.10"]
[White "Yalciner, Suleyman"]
[Black "Yigit, Sadik"]
[Result "0-1"]
[ECO "B14"]
[WhiteElo "1491"]
[BlackElo "1473"]
[Annotator "NA"]
[PlyCount "65"]
[EventDate "2019.01.20"]
[EventType "swiss"]
[EventCountry "TUR"]
[SourceTitle "playchess.com"]
[Source "ChessBase"]
[SourceQuality "1"]
[TimeControl "5400+30"]

1. e4 {[%emt 0:00:30]} c5 {[%emt 0:00:30]} 2. Nf3 {[%emt 0:01:30]} Nc6 {[%emt 0:00:30]} 3. Bc4 {[%emt 0:00:30]} e6 {[%emt 0:01:30]} 4. O-O {[%emt 0:00:30]} Be7 {[%emt 0:00:30]} 5. c3 {[%emt 0:00:00]} d6 {[%emt 0:01:30]} 6. d4 {[%emt 0:00:00]} cxd4 {[%emt 0:04:30]} 7. cxd4 {[%emt 0:00:30]} d5 {[%emt 0:01:30]} 8. exd5 {[%emt 0:00:30]} exd5 {[%emt 0:00:30]} 9. Bd3 {[%emt 0:00:30]} Nf6 {[%emt 0:00:30]} 10. Nc3 {[%emt 0:00:30]} O-O {[%emt 0:00:30]} 11. h3 {[%emt 0:00:30]} a6 {[%emt 0:01:30]} 12. Bg5 {[%emt 0:00:30]} h6 {[%emt 0:02:30]} 13. Be3 {[%emt 0:02:30]} Be6 {[%emt 0:02:30]} 14. a3 {[%emt 0:00:00]} Rc8 {[%emt 0:01:30]} 15. Qd2 {[%emt 0:01:00]} Nh7 {[%emt 0:11:30]} 16. Ne2 {[%emt 0:10:30]} Ng5 {[%emt 0:05:30]} 17. Nxg5 {[%emt 0:03:30]} hxg5 {[%emt 0:02:30]} 18. f4 {[%emt 0:06:30]} gxf4 {[%emt 0:03:30]} 19. Bxf4 {[%emt 0:00:30]} Bf6 {[%emt 0:01:30]} 20. Bc2 {[%emt 0:03:30]} Nxd4 {[%emt 0:05:30]} 21. Nxd4 {[%emt 0:06:30]} Bxd4+ {[%emt 0:01:30]} 22. Kh1 {[%emt 0:00:30]} Bxb2 {[%emt 0:03:30]} 23. Rab1 {[%emt 0:00:30]} Bc3 {[%emt 0:00:30]} 24. Qd3 {[%emt 0:00:30]} g6 {[%emt 0:04:30]} 25. Rxb7 {[%emt 0:00:30]} Bf5 {[%emt 0:01:30]} 26. Qd1 {[%emt 0:02:30]} Bxc2 {[%emt 0:01:30]} 27. Qxc2 {[%emt 0:00:00]} Bg7 {[%emt 0:03:30]} 28. Qa4 {[%emt 0:06:00]} Qf6 {[%emt 0:03:30]} 29. Rf3 {[%emt 0:06:30]} Rc4 {[%emt 0:01:30]} 30. Rb4 {[%emt 0:02:30]} Rxb4 {[%emt 0:02:30]} 31. Qxb4 {[%emt 0:02:30]} Qc6 {[%emt 0:01:30]} 32. Qe7 {[%emt 0:11:30]} Re8 {[%emt 0:03:30]} 33. Qa7 {[%emt 0:08:30]} 0-1

[Event "TUR-ch Veterans 2019"]
[Site "Belek"]
[Date "2019.01.26"]
[Round "7.11"]
[White "Marthedal, Anton Mehmet Yildiz"]
[Black "Cosan, Gokmen"]
[Result "1-0"]
[ECO "C02"]
[WhiteElo "1885"]
[BlackElo "1727"]
[Annotator "NA"]
[PlyCount "55"]
[EventDate "2019.01.20"]
[EventType "swiss"]
[EventCountry "TUR"]
[SourceTitle "playchess.com"]
[Source "ChessBase"]
[SourceQuality "1"]
[TimeControl "5400+30"]

{[%evp 10,46,-68,-88,0,-11,0,1,0,-25,-14,-28,6,32767,0,-33,32767,32767,32767,32767,32767,32767,32767,32767,32767,32767,374,450,437,549,448,475,713,740,982,818,1079,1099,1035]} 1. e4 {[%emt 0:00:30]} e6 {[%emt 0:00:30]} 2. Nf3 {[%emt 0:00:30]} d5 {[%emt 0:00:30]} 3. e5 {[%emt 0:00:30]} c5 {[%emt 0:00:30]} 4. d4 {[%emt 0:00:00]} cxd4 {[%emt 0:00:00] C02: French: Advance Variation} (4... Nc6 5. Bd3 Bd7 6. O-O Rc8 7. dxc5 Bxc5 8. a3 a5 9. Bf4 Nge7 10. Nbd2 Ng6 11. Bg3 O-O 12. c4 dxc4 13. Nxc4 b5 {1-0 (44) Spraggett,K (2595)-Cordova,E (2572) Barcelona 2012}) 5. a3 {[%emt 0:00:00]} Nc6 {[%emt 0:00:00]} 6. Bd3 {[%emt 0:00:00]} Qb6 {[%emt 0:03:30]} (6... f6 $15 7. Qe2 Qc7 8. exf6 Nxf6) 7. b4 {[%emt 0:00:00]} Bd7 {[%emt 0:01:30]} 8. O-O {[%emt 0:00:30]} Nge7 {[%emt 0:00:30]} 9. Bf4 {[%emt 0:02:30]} a6 {[%emt 0:01:30]} 10. Re1 {[%emt 0:00:30]} Na7 $146 {[%emt 0:00:00]} ({Predecessor:} 10... O-O-O 11. Nbd2 f6 12. Nb3 Re8 13. Qd2 fxe5 14. Nxe5 Nxe5 15. Bxe5 {½-½ (51) Vidal Fernandez,P (2057)-Morona Minguez,M (1924) Salobrena 2015}) 11. Ng5 {[%emt 0:02:30]} Bb5 {[%emt 0:02:00]} (11... h6 $17 12. Nf3 g5) 12. Bxh7 {[%emt 0:02:30]} Rc8 {[%emt 0:07:30]} 13. Qh5 {[%emt 0:01:30]} g6 {[%emt 0:00:30]} 14. Qf3 {[%emt 0:01:30]} Rxc2 {[%emt 0:02:30]} 15. Bd2 {[%emt 0:00:30]} Rxh7 {[%emt 0:00:30]} 16. Nxh7 {[%emt 0:00:00]} Rc7 {[%emt 0:00:30]} 17. Nf6+ {[%emt 0:00:00]} Kd8 {[%emt 0:00:30]} 18. Bg5 {[%emt 0:00:30]} Be8 {[%emt 0:01:30]} 19. Qh3 {[%emt 0:00:30]} Bg7 {[%emt 0:02:30]} 20. Ng8 {[%emt 0:00:30]} Nb5 {[%emt 0:01:30]} (20... d3 $142 21. Nxe7 Rxe7) 21. Qh7 {[%emt 0:00:30]} Bf8 {[%emt 0:00:30]} 22. Nd2 {[%emt 0:00:30]} Nc3 {[%emt 0:02:30]} 23. Nf6 {[%emt 0:00:30]} Qc6 $18 {[%emt 0:06:30]} 24. Qh8 {[%emt 0:00:30]} Ne4 {[%emt 0:00:30]} 25. Ndxe4 {[%emt 0:02:30]} dxe4 {[%emt 0:03:30]} 26. Qxf8 {[%emt 0:02:30]} e3 {[%emt 0:01:30]} 27. Rac1 {[%emt 0:01:30]} exf2+ {[%emt 0:03:30]} 28. Kxf2 {[%emt 0:00:30]} 1-0

[Event "TUR-ch Veterans 2019"]
[Site "Belek"]
[Date "2019.01.26"]
[Round "7.13"]
[White "Cicek, Cemil"]
[Black "Yuksel, Mustafa"]
[Result "0-1"]
[ECO "A85"]
[WhiteElo "1999"]
[BlackElo "2031"]
[Annotator "NA"]
[PlyCount "106"]
[EventDate "2019.01.20"]
[EventType "swiss"]
[EventCountry "TUR"]
[SourceTitle "playchess.com"]
[Source "ChessBase"]
[SourceQuality "1"]
[TimeControl "5400+30"]

1. d4 {[%emt 0:00:30]} e6 {[%emt 0:00:30]} 2. c4 {[%emt 0:00:30]} f5 {[%emt 0:00:00]} 3. Nc3 {[%emt 0:00:30]} Nf6 {[%emt 0:00:00]} 4. Nf3 {[%emt 0:00:30]} Bb4 {[%emt 0:00:00]} 5. Bg5 {[%emt 0:00:30]} Bxc3+ {[%emt 0:00:00] LiveBook: 9 Games A85: Dutch Defence: 2 c4 Nf6 3 Nc3} (5... O-O 6. e3 Bxc3+ 7. bxc3 d6 8. Be2 Nbd7 9. O-O Qe7 10. Nd2 b6 11. Bf3 Rb8 12. Bc6 h6 13. Bh4 Bb7 14. Bxb7 Rxb7 {1-0 (39) Adams,M (2740)-Bareev,E (2715) chessassistantclub.com INT 2004}) 6. bxc3 {[%emt 0:00:30]} h6 {[%emt 0:00:30]} 7. Bc1 {[%emt 0:00:30]} O-O {[%emt 0:00:30]} 8. g3 {[%emt 0:00:30]} b6 $146 {[%emt 0:00:30]} ({Predecessor:} 8... d6 9. Bg2 Nbd7 10. O-O Ne4 11. Qb3 c5 12. Nd2 Ng5 13. f4 {½-½ (31) Benedek,Z (2204)-Heindrich,J (2126) Hungary 2010}) 9. Bg2 {[%emt 0:00:30]} Bb7 {[%emt 0:00:00]} 10. O-O {[%emt 0:01:30]} d6 {[%emt 0:00:00]} 11. a4 {[%emt 0:00:30]} ({White should play} 11. d5 $11) 11... Ne4 {[%emt 0:05:30]} 12. Qb3 {[%emt 0:01:30]} Nc6 {[%emt 0:06:30]} 13. a5 {[%emt 0:00:30]} Qc8 {[%emt 0:02:30]} 14. axb6 {[%emt 0:00:30]} axb6 {[%emt 0:00:30]} 15. Rxa8 {[%emt 0:00:30]} Bxa8 {[%emt 0:00:30]} 16. Bb2 {[%emt 0:01:30]} Na5 {[%emt 0:01:30]} 17. Qa2 {[%emt 0:01:30] [#]} Qa6 $1 {[%emt 0:01:30]} 18. c5 {[%emt 0:00:00]} Bd5 {[%emt 0:01:30]} 19. Qa1 {[%emt 0:00:00]} (19. c4 $142 Qxc4 20. Qxc4 Nxc4 21. cxb6) 19... Qxe2 {[%emt 0:04:30]} 20. cxd6 {[%emt 0:02:30]} cxd6 {[%emt 0:00:30]} 21. Nh4 $2 {[%emt 0:01:30]} (21. Ba3) 21... Ra8 {[%emt 0:02:30]} 22. Bc1 {[%emt 0:04:30]} (22. Bxe4 $142 Bxe4 23. f3) 22... Nb3 {[%emt 0:08:30]} 23. Qb2 {[%emt 0:00:30]} Qxb2 {[%emt 0:00:30]} 24. Bxb2 {[%emt 0:00:30]} Ra2 {[%emt 0:00:30]} 25. Bc1 {[%emt 0:00:30]} g5 {[%emt 0:02:30]} 26. Bxe4 {[%emt 0:01:30]} Bxe4 {[%emt 0:01:30]} 27. Ng2 {[%emt 0:00:30]} Rc2 {[%emt 0:02:30]} 28. Be3 {[%emt 0:00:30]} Rxc3 {[%emt 0:00:00]} 29. h4 {[%emt 0:00:30]} gxh4 {[%emt 0:01:00]} 30. Nxh4 {[%emt 0:00:30]} Kh7 {[%emt 0:00:30]} 31. Ng2 {[%emt 0:01:30]} Bxg2 {[%emt 0:00:30]} 32. Kxg2 {[%emt 0:00:30]} Kg6 {[%emt 0:00:30]} 33. Rd1 {[%emt 0:00:30]} b5 {[%emt 0:01:30]} 34. Kf3 {[%emt 0:02:30]} h5 {[%emt 0:01:30]} 35. Ke2 {[%emt 0:01:30]} b4 {[%emt 0:05:30]} 36. Rb1 $11 {[%emt 0:02:30]} Rc2+ $2 {[%emt 0:00:30]} ({Better is} 36... d5 $19 37. Kd1 Kf7 {[%mdl 64] Decoy}) 37. Kd1 {[%emt 0:00:30]} Rc3 {[%emt 0:00:30]} 38. Rb2 $2 {[%emt 0:00:30]} Kf6 {[%emt 0:00:30]} 39. Ke2 {[%emt 0:01:30]} e5 {[%emt 0:01:30]} 40. dxe5+ {[%emt 0:01:30]} Kxe5 {[%emt 0:00:30]} 41. Rb1 {[%emt 0:00:30]} d5 {[%emt 0:00:30]} 42. Bh6 {[%emt 0:02:30]} Ke4 {[%emt 0:02:30]} 43. Bg7 {[%emt 0:04:30]} d4 {[%emt 0:01:30]} 44. Bh6 $19 {[%emt 0:00:30]} Kd5 {[%emt 0:01:30]} 45. Rh1 {[%emt 0:01:30]} Kc4 {[%emt 0:01:30]} 46. Rxh5 {[%emt 0:00:30]} Rc2+ {[%emt 0:00:30]} 47. Ke1 {[%emt 0:00:30]} Nc5 {[%emt 0:00:00]} 48. Rxf5 {[%emt 0:01:30]} Nd3+ {[%emt 0:01:00]} 49. Kd1 {[%emt 0:02:30]} b3 {[%emt 0:01:30]} 50. Rf8 {[%emt 0:01:30]} Nxf2+ {[%emt 0:00:30]} 51. Ke1 {[%emt 0:00:30]} b2 {[%emt 0:00:30]} 52. Rb8 {[%emt 0:00:30]} Nd3+ {[%emt 0:00:30]} 53. Kd1 {[%emt 0:00:30]} Rc1+ {[%emt 0:00:30]} 0-1

[Event "TUR-ch Veterans 2019"]
[Site "Belek"]
[Date "2019.01.26"]
[Round "7.14"]
[White "Bapoglu, Ibrahim"]
[Black "Muratoglu, Salih"]
[Result "1/2-1/2"]
[ECO "B07"]
[WhiteElo "1549"]
[BlackElo "1950"]
[Annotator "NA"]
[PlyCount "72"]
[EventDate "2019.01.20"]
[EventType "swiss"]
[EventCountry "TUR"]
[SourceTitle "playchess.com"]
[Source "ChessBase"]
[SourceQuality "1"]
[TimeControl "5400+30"]

{[%evp 8,59,39,39,51,52,39,46,62,27,32767,0,32767,32767,32767,32767,32767,32767,32767,32767,32767,12,7,-23,-20,-44,19,-22,0,-13,0,-22,32767,32767,32767,32767,0,0,27,32767,32767,32767,32767,-116,32767,-184,-139,-292,-18,-5,0,0,0,-22]} 1. e4 {[%emt 0:00:30]} d6 {[%emt 0:00:30]} 2. d4 {[%emt 0:00:30]} g6 {[%emt 0:00:30]} 3. Nc3 {[%emt 0:01:30]} Bg7 {[%emt 0:00:30]} 4. Be3 {[%emt 0:00:00]} Nf6 {[%emt 0:00:00]} 5. f3 {[%emt 0:00:00]} a6 {[%emt 0:01:00]} 6. Qd2 {[%emt 0:00:30] B07: Pirc Defence: Miscellaneous Systems} b5 {[%emt 0:00:30]} 7. a3 {[%emt 0:00:30] LiveBook: 3 Games} (7. O-O-O Nbd7 8. Bh6 Bxh6 9. Qxh6 b4 10. Nce2 e5 11. dxe5 dxe5 12. Kb1 Qe7 13. Nc1 Qf8 14. Qh4 Qe7 15. Qh6 Qf8 16. Qe3 Qc5 17. Qh6 {½-½ (17) Grischuk,A (2737)-Dubov,D (2660) Doha 2016}) 7... Nc6 {[%emt 0:01:30]} 8. Bd3 {[%emt 0:01:30]} e5 $146 {[%emt 0:00:30]} ({Predecessor:} 8... Bb7 9. Nge2 Nd7 10. Nd1 Na7 11. O-O c5 12. c3 Nc6 13. Nf2 Na5 {½-½ (39) Brandstaetter,M (1675)-Vladov,M Mecklenburg VP 2003}) 9. Nge2 {[%emt 0:00:30]} (9. d5 $5 {[%cal Rd5c6]} Ne7 10. Nge2 $14) 9... Rb8 {[%emt 0:06:30]} 10. d5 {[%emt 0:00:30]} Ne7 {[%emt 0:01:30]} 11. b4 {[%emt 0:01:30]} c6 {[%emt 0:00:30]} 12. dxc6 {[%emt 0:01:30]} Nxc6 {[%emt 0:00:30]} 13. Rd1 {[%emt 0:00:30]} O-O {[%emt 0:01:30]} 14. O-O {[%emt 0:01:30]} Be6 {[%emt 0:00:30]} 15. Ng3 {[%emt 0:03:30]} Qc7 {[%emt 0:02:30]} 16. h3 {[%emt 0:01:30]} h5 {[%emt 0:01:30]} ({Black should try} 16... Rfc8 $15) 17. Bg5 {[%emt 0:01:30]} Rbc8 {[%emt 0:01:30]} 18. Nce2 {[%emt 0:00:30]} Nh7 {[%emt 0:00:30]} 19. Bh6 {[%emt 0:00:00]} h4 {[%emt 0:01:30]} 20. Bxg7 {[%emt 0:01:00]} Kxg7 {[%emt 0:01:30]} 21. Nh1 {[%emt 0:00:30]} f5 {[%emt 0:01:30]} 22. Nf2 {[%emt 0:01:30]} Rfd8 {[%emt 0:02:30]} 23. Qe1 {[%emt 0:09:30]} d5 {[%emt 0:02:30]} 24. Kh1 {[%emt 0:02:30]} Qe7 {[%emt 0:02:30]} 25. Rb1 {[%emt 0:04:30]} (25. exf5 $11 {keeps the balance.} gxf5 26. a4) 25... Nf6 {[%emt 0:03:30]} 26. Qc1 {[%emt 0:05:30]} (26. a4 $15) 26... Nh5 {[%emt 0:02:30]} (26... dxe4 $19 27. fxe4 f4) 27. Kh2 {[%emt 0:02:30]} (27. exd5 $17 Bxd5 28. Re1) 27... Nd4 $2 {[%emt 0:00:30]} (27... dxe4 $19 28. fxe4 f4) 28. Nxd4 $1 {[%emt 0:04:30]} exd4 {[%emt 0:04:30]} 29. e5 {[%emt 0:00:30]} Rc3 {[%emt 0:03:30]} 30. Nd1 $11 {[%emt 0:02:30]} Rc6 {[%emt 0:02:30]} 31. f4 {[%emt 0:00:30]} Rdc8 {[%emt 0:01:30]} 32. Qd2 {[%emt 0:02:30]} Qc7 {[%emt 0:00:30]} 33. Qf2 {[%emt 0:00:30]} g5 {[%emt 0:02:30]} 34. Qxd4 {[%emt 0:01:30]} Nxf4 {[%emt 0:01:30]} 35. Rxf4 {[%emt 0:02:30]} gxf4 {[%emt 0:00:30]} 36. Qxf4 {[%emt 0:00:30]} Rc4 {[%emt 0:10:30]} 1/2-1/2

[Event "TUR-ch Veterans 2019"]
[Site "Belek"]
[Date "2019.01.26"]
[Round "7.15"]
[White "Topaloglu, Hayati"]
[Black "Tekeli, Savran"]
[Result "1-0"]
[ECO "C16"]
[WhiteElo "1740"]
[BlackElo "1478"]
[Annotator "NA"]
[PlyCount "95"]
[EventDate "2019.01.20"]
[EventType "swiss"]
[EventCountry "TUR"]
[SourceTitle "playchess.com"]
[Source "ChessBase"]
[SourceQuality "1"]
[TimeControl "5400+30"]

1. e4 {[%emt 0:00:30]} e6 {[%emt 0:00:30]} 2. d4 {[%emt 0:01:30]} d5 {[%emt 0:00:00]} 3. Nc3 {[%emt 0:00:30]} Bb4 {[%emt 0:01:00]} 4. e5 {[%emt 0:00:00]} f6 {[%emt 0:00:30]} 5. f4 {[%emt 0:00:00]} c5 {[%emt 0:00:30]} 6. Nf3 {[%emt 0:01:30]} Nc6 {[%emt 0:00:30]} 7. a3 {[%emt 0:02:30]} Bxc3+ {[%emt 0:00:30]} 8. bxc3 {[%emt 0:00:30]} c4 {[%emt 0:00:30]} 9. Nh4 {[%emt 0:02:30]} g6 {[%emt 0:00:30]} 10. g3 {[%emt 0:03:30]} Nh6 {[%emt 0:02:30]} 11. Nf3 {[%emt 0:03:30]} O-O {[%emt 0:01:30]} 12. h4 {[%emt 0:00:30]} Nf5 {[%emt 0:01:30]} 13. g4 {[%emt 0:01:30]} Ng3 {[%emt 0:00:30]} 14. Rh3 {[%emt 0:02:30]} Ne4 {[%emt 0:04:30]} 15. Bd2 {[%emt 0:00:30]} Qa5 {[%emt 0:00:30]} 16. Ng1 {[%emt 0:00:30]} fxe5 {[%emt 0:00:30]} 17. dxe5 {[%emt 0:04:30]} b5 {[%emt 0:09:30]} 18. Bg2 {[%emt 0:02:30]} Nxd2 {[%emt 0:01:30]} 19. Qxd2 {[%emt 0:00:30]} Ne7 {[%emt 0:04:30]} 20. Nf3 {[%emt 0:00:30]} Bd7 {[%emt 0:03:30]} 21. Ke2 {[%emt 0:02:30]} Rad8 {[%emt 0:02:30]} 22. h5 {[%emt 0:00:30]} Kg7 {[%emt 0:07:30]} 23. Rah1 {[%emt 0:00:30]} Rh8 {[%emt 0:00:30]} 24. h6+ {[%emt 0:01:30]} Kf8 {[%emt 0:02:30]} 25. Nd4 {[%emt 0:03:30]} Nc6 {[%emt 0:00:30]} 26. Nxc6 {[%emt 0:05:30]} Bxc6 {[%emt 0:00:30]} 27. f5 {[%emt 0:00:30]} Rg8 {[%emt 0:11:30]} 28. fxe6 {[%emt 0:02:30]} Qxa3 {[%emt 0:06:30]} 29. Rf1+ {[%emt 0:02:30]} Ke7 {[%emt 0:02:30]} 30. Qg5+ {[%emt 0:01:30]} Kxe6 {[%emt 0:01:30]} 31. Rf6+ {[%emt 0:03:30]} Kd7 {[%emt 0:00:30]} 32. Rf7+ {[%emt 0:05:30]} Kc8 {[%emt 0:00:30]} 33. Rxh7 {[%emt 0:01:30]} Rd7 {[%emt 0:03:30]} 34. Rxd7 {[%emt 0:01:30]} Kxd7 {[%emt 0:00:30]} 35. h7 {[%emt 0:00:30]} Rh8 {[%emt 0:00:30]} 36. Qxg6 {[%emt 0:00:30]} Qe7 {[%emt 0:01:30]} 37. Qf5+ {[%emt 0:00:30]} Kc7 {[%emt 0:00:30]} 38. Rh6 {[%emt 0:01:30]} Bd7 {[%emt 0:01:30]} 39. e6 {[%emt 0:00:00]} Bc6 {[%emt 0:00:30]} 40. Qe5+ {[%emt 0:00:00]} Kb6 {[%emt 0:01:30]} 41. Qxh8 {[%emt 0:01:30]} Qg5 {[%emt 0:00:30]} 42. Qf6 {[%emt 0:00:30]} Qc1 {[%emt 0:02:30]} 43. Qd4+ {[%emt 0:00:30]} Kb7 {[%emt 0:00:30]} 44. h8=Q {[%emt 0:02:30]} Qxc2+ {[%emt 0:00:30]} 45. Kf1 {[%emt 0:01:30]} Qc1+ {[%emt 0:00:30]} 46. Kf2 {[%emt 0:00:00]} Ka6 {[%emt 0:03:30]} 47. Rh7 {[%emt 0:00:00]} Bb7 {[%emt 0:00:30]} 48. Qhg7 {[%emt 0:02:30]} 1-0

[Event "TUR-ch Veterans 2019"]
[Site "Belek"]
[Date "2019.01.26"]
[Round "7.16"]
[White "Akinci, Ahmet"]
[Black "Yilmaz, Huseyin"]
[Result "0-1"]
[ECO "A40"]
[WhiteElo "1402"]
[BlackElo "1321"]
[Annotator "NA"]
[PlyCount "68"]
[EventDate "2019.01.20"]
[EventType "swiss"]
[EventCountry "TUR"]
[SourceTitle "playchess.com"]
[Source "ChessBase"]
[SourceQuality "1"]
[TimeControl "5400+30"]

1. d4 {[%emt 0:02:30]} g6 {[%emt 0:00:30]} 2. e4 {[%emt 0:00:30]} Bg7 {[%emt 0:00:30]} 3. c4 {[%emt 0:01:30]} e5 {[%emt 0:00:30]} 4. Be3 {[%emt 0:00:30]} d6 {[%emt 0:00:30]} 5. Nf3 {[%emt 0:01:30]} Ne7 {[%emt 0:01:30]} 6. dxe5 {[%emt 0:01:30]} O-O {[%emt 0:01:30]} 7. Bg5 {[%emt 0:04:30]} h6 {[%emt 0:01:30]} 8. Bh4 {[%emt 0:00:30]} g5 {[%emt 0:00:00]} 9. Bg3 {[%emt 0:00:00]} f5 {[%emt 0:00:00]} 10. exf6 {[%emt 0:01:00]} Bxf6 {[%emt 0:01:30]} 11. Nc3 {[%emt 0:01:30]} Bg4 {[%emt 0:00:30]} 12. e5 {[%emt 0:02:30]} Bg7 {[%emt 0:01:30]} 13. Qb3 {[%emt 0:00:00]} Nbc6 {[%emt 0:03:30]} 14. Be2 {[%emt 0:02:00]} Bxf3 {[%emt 0:00:30]} 15. Bxf3 {[%emt 0:00:00]} Nd4 {[%emt 0:00:30]} 16. Qd1 {[%emt 0:03:00]} dxe5 {[%emt 0:00:30]} 17. Be4 {[%emt 0:02:30]} c6 {[%emt 0:01:30]} 18. Bb1 {[%emt 0:01:30]} Qe8 {[%emt 0:00:30]} 19. Qd3 {[%emt 0:00:30]} Ndf5 {[%emt 0:00:30]} 20. O-O {[%emt 0:02:30]} Rd8 {[%emt 0:00:30]} 21. Qe2 {[%emt 0:00:30]} Ng6 {[%emt 0:03:30]} 22. c5 {[%emt 0:02:30]} Nf4 {[%emt 0:01:30]} 23. Bxf4 {[%emt 0:00:30]} exf4 {[%emt 0:00:30]} 24. Qg4 {[%emt 0:00:30]} Qf7 {[%emt 0:01:30]} 25. Bc2 {[%emt 0:01:30]} Rd2 {[%emt 0:02:30]} 26. Bb3 {[%emt 0:01:30]} Rd5 {[%emt 0:00:30]} 27. Nxd5 {[%emt 0:00:30]} cxd5 {[%emt 0:00:30]} 28. Rad1 {[%emt 0:00:30]} Rd8 {[%emt 0:00:30]} 29. Rfe1 {[%emt 0:01:30]} Kh8 {[%emt 0:00:30]} 30. Bc2 {[%emt 0:01:30]} Nd4 {[%emt 0:00:30]} 31. Bb1 {[%emt 0:01:30]} f3 {[%emt 0:02:30]} 32. Rxd4 {[%emt 0:00:30]} fxg2 {[%emt 0:01:30]} 33. Rd3 {[%emt 0:00:30]} Rf8 {[%emt 0:01:30]} 34. Ree3 {[%emt 0:05:30]} Qxf2# {[%emt 0:00:30]} 0-1